fUST/lending_fUST_20250606
["ID","MTS","AMOUNT","RATE_DAILY","PERIOD"]
[364562907,1749142248272,-440.0,0.00020821,2]
[364562908,1749142248282,-440.0,0.00020821,2]
[364562909,1749142248291,-512.61,0.00020821,2]
[364562910,1749142248301,-440.0,0.00020821,2]
[364562911,1749142248312,-440.0,0.00020821,2]
[364562912,1749142248320,-440.0,0.00020821,2]
[364562913,1749142248330,-440.0,0.00020821,2]
[364562914,1749142248340,-12289.23,0.00020821,2]
[364562915,1749142248349,-247.81689148,0.00020821,2]
[364562916,1749142248359,-440.0,0.00020821,2]
[364562917,1749142248369,-984.75,0.00020821,2]
[364562918,1749142248378,-440.0,0.00020821,2]
[364562919,1749142248387,-440.0,0.00020821,2]
[364562920,1749142248397,-938.04,0.00020821,2]
[364562921,1749142248407,-914.52,0.00020821,2]
[364562923,1749142248418,-2000.0,0.00020969,2]
[364562925,1749142248428,-394.8738233,0.0002097,2]
[364562926,1749142248438,-440.0,0.00021095,2]
[364562928,1749142248447,-440.0,0.00021095,2]
[364562930,1749142248457,-440.0,0.00021095,2]
[364562932,1749142248467,-440.0,0.00021095,2]
[364562934,1749142248476,-812.94,0.00021095,2]
[364562936,1749142248488,-1056.1,0.00021095,2]
[364562937,1749142248498,-1677.44,0.00021095,2]
[364562939,1749142248507,-1340.53,0.00021095,2]
[364562941,1749142248517,-487.64,0.00021095,2]
[364562944,1749142248528,-384.94,0.00021095,2]
[364562946,1749142248538,-1782.43,0.00021095,2]
[364562948,1749142248547,-443.59,0.00021095,2]
[364562950,1749142248557,-440.0,0.00021095,2]
[364562952,1749142248566,-504.66,0.00021095,2]
[364562954,1749142248576,-440.0,0.00021095,2]
[364562955,1749142248585,-570.88,0.00021095,2]
[364562956,1749142248595,-685.71,0.00021095,2]
[364562957,1749142248605,-542.91,0.00021095,2]
[364562958,1749142248614,-440.0,0.00021095,2]
[364562959,1749142248624,-440.0,0.00021095,2]
[364562960,1749142248634,-512.61,0.00021095,2]
[364562961,1749142248643,-440.0,0.00021095,2]
[364562962,1749142248654,-440.0,0.00021095,2]
[364562963,1749142248663,-440.0,0.00021095,2]
[364562964,1749142248673,-440.0,0.00021095,2]
[364562965,1749142248682,-12289.23,0.00021095,2]
[364562966,1749142248692,-440.0,0.00021095,2]
[364562967,1749142248702,-984.75,0.00021095,2]
[364562968,1749142248711,-440.0,0.00021095,2]
[364562969,1749142248720,-440.0,0.00021095,2]
[364562970,1749142248729,-938.04,0.00021095,2]
[364562971,1749142248742,-914.52,0.00021095,2]
[364562972,1749142248751,-440.0,0.00021369,2]
[364562973,1749142248760,-440.0,0.00021369,2]
[364562974,1749142248770,-440.0,0.00021369,2]
[364562975,1749142248783,-440.0,0.00021369,2]
[364562976,1749142248793,-812.94,0.00021369,2]
[364562977,1749142248802,-1056.1,0.00021369,2]
[364562978,1749142248812,-1677.44,0.00021369,2]
[364562979,1749142248823,-1340.53,0.00021369,2]
[364562980,1749142248832,-400.0,0.00021369,2]
[364562981,1749142248842,-470.0,0.00021369,2]
[364562982,1749142248852,-487.64,0.00021369,2]
[364562983,1749142248863,-1782.43,0.00021369,2]
[364562984,1749142248872,-443.59,0.00021369,2]
[364562985,1749142248882,-440.0,0.00021369,2]
[364562986,1749142248892,-504.66,0.00021369,2]
[364562987,1749142248902,-440.0,0.00021369,2]
[364562988,1749142248912,-570.88,0.00021369,2]
[364562989,1749142248921,-685.71,0.00021369,2]
[364562990,1749142248931,-542.91,0.00021369,2]
[364562991,1749142248941,-440.0,0.00021369,2]
[364562992,1749142248951,-440.0,0.00021369,2]
[364562993,1749142248962,-512.61,0.00021369,2]
[364562994,1749142248971,-440.0,0.00021369,2]
[364562995,1749142248984,-440.0,0.00021369,2]
[364562996,1749142248995,-440.0,0.00021369,2]
[364562997,1749142249004,-492.2,0.00021369,2]
[364562998,1749142249014,-12289.23,0.00021369,2]
[364562999,1749142249024,-440.0,0.00021369,2]
[364563000,1749142249034,-984.75,0.00021369,2]
[364563001,1749142249044,-440.0,0.00021369,2]
[364563002,1749142249054,-440.0,0.00021369,2]
[364563003,1749142249064,-938.04,0.00021369,2]
[364563004,1749142249075,-914.52,0.00021369,2]
[364563005,1749142249085,-1090.67673037,0.00021517,2]
[364563006,1749142249094,-284.53,0.00021643,2]
[364563007,1749142249104,-440.0,0.00021643,2]
[364563008,1749142249114,-440.0,0.00021643,2]
[364563009,1749142249123,-440.0,0.00021643,2]
[364563010,1749142249133,-812.94,0.00021643,2]
[364563011,1749142249143,-1056.1,0.00021643,2]
[364563012,1749142249152,-1677.44,0.00021643,2]
[364563013,1749142249162,-1340.53,0.00021643,2]
[364563014,1749142249172,-487.64,0.00021643,2]
[364563015,1749142249181,-1782.43,0.00021643,2]
[364563016,1749142249190,-443.59,0.00021643,2]
[364563017,1749142249200,-440.0,0.00021643,2]
[364563018,1749142249210,-504.66,0.00021643,2]
[364563019,1749142249219,-440.0,0.00021643,2]
[364563020,1749142249228,-570.88,0.00021643,2]
[364563021,1749142249240,-685.71,0.00021643,2]
[364563022,1749142249250,-542.91,0.00021643,2]
[364563023,1749142249260,-440.0,0.00021643,2]
[364563024,1749142249269,-440.0,0.00021643,2]
[364563025,1749142249278,-512.61,0.00021643,2]
[364563026,1749142249288,-440.0,0.00021643,2]
[364563027,1749142249297,-427.27160208,0.00021643,2]
[364563028,1749142249306,-440.0,0.00021643,2]
[364563029,1749142249316,-12289.23,0.00021643,2]
[364563030,1749142249325,-440.0,0.00021643,2]
[364563031,1749142249335,-984.75,0.00021643,2]
[364563032,1749142249344,-440.0,0.00021643,2]
[364563033,1749142249353,-440.0,0.00021643,2]
[364563034,1749142249363,-938.04,0.00021643,2]
[364563035,1749142249372,-914.52,0.00021643,2]
[364563036,1749142249381,-22537.82,0.000217,2]
[364563037,1749142249390,-1277.15,0.00021799,2]
[364563038,1749142249399,-440.0,0.00021917,2]
[364563039,1749142249409,-316.41,0.00021917,2]
[364563040,1749142249418,-187.05,0.00021917,2]
[364563041,1749142249427,-812.94,0.00021917,2]
[364563042,1749142249436,-1056.1,0.00021917,2]
[364563043,1749142249446,-1677.44,0.00021917,2]
[364563044,1749142249456,-1340.53,0.00021917,2]
[364563045,1749142249465,-487.64,0.00021917,2]
[364563046,1749142249475,-1782.43,0.00021917,2]
[364563047,1749142249486,-443.59,0.00021917,2]
[364563048,1749142249495,-440.0,0.00021917,2]
[364563049,1749142249505,-504.66,0.00021917,2]
[364563050,1749142249515,-440.0,0.00021917,2]
[364563051,1749142249524,-570.88,0.00021917,2]
[364563052,1749142249535,-685.71,0.00021917,2]
[364563053,1749142249544,-500.0,0.00021917,2]
[364563054,1749142249554,-542.91,0.00021917,2]
[364563055,1749142249564,-401.81486513,0.00021917,2]
[364563056,1749142249573,-440.0,0.00021917,2]
[364563057,1749142249582,-512.61,0.00021917,2]
[364563058,1749142249592,-440.0,0.00021917,2]
[364563059,1749142249602,-440.0,0.00021917,2]
[364563060,1749142249611,-12289.23,0.00021917,2]
[364563061,1749142249621,-440.0,0.00021917,2]
[364563062,1749142249630,-984.75,0.00021917,2]
[364563063,1749142249641,-440.0,0.00021917,2]
[364563064,1749142249651,-440.0,0.00021917,2]
[364563065,1749142249660,-938.04,0.00021917,2]
[364563066,1749142249669,-914.52,0.00021917,2]
[364563067,1749142249679,-177.0,0.00022,2]
[364563068,1749142249689,-207.4,0.00022107,2]
[364563069,1749142249706,-394.8738233,0.0002219,2]
[364563070,1749142249719,-440.0,0.00022191,2]
[364563071,1749142249728,-812.94,0.00022191,2]
[364563072,1749142249739,-1056.1,0.00022191,2]
[364563073,1749142249749,-1677.44,0.00022191,2]
[364563074,1749142249758,-1340.53,0.00022191,2]
[364563075,1749142249770,-487.64,0.00022191,2]
[364563076,1749142249782,-1782.43,0.00022191,2]
[364563077,1749142249791,-443.59,0.00022191,2]
[364563078,1749142249801,-440.0,0.00022191,2]
[364563079,1749142249811,-504.66,0.00022191,2]
[364563080,1749142249820,-440.0,0.00022191,2]
[364563081,1749142249829,-570.88,0.00022191,2]
[364563082,1749142249840,-685.71,0.00022191,2]
[364563083,1749142249850,-542.91,0.00022191,2]
[364563084,1749142249860,-440.0,0.00022191,2]
[364563085,1749142249870,-512.61,0.00022191,2]
[364563086,1749142249879,-440.0,0.00022191,2]
[364563087,1749142249889,-440.0,0.00022191,2]
[364563088,1749142250031,-12289.23,0.00022191,2]
[364563089,1749142250041,-984.75,0.00022191,2]
[364563090,1749142250051,-440.0,0.00022191,2]
[364563091,1749142250060,-440.0,0.00022191,2]
[364563092,1749142250069,-440.0,0.00022191,2]
[364563093,1749142250078,-938.04,0.00022191,2]
[364563094,1749142250088,-914.52,0.00022191,2]
[364563095,1749142250097,-2126.51,0.000222,2]
[364563096,1749142250107,-1187.73,0.000222,7]
[364563097,1749142250116,-2799.72,0.000222,7]
[364563098,1749142250125,-36875.93327572,0.000222,69]
[364563099,1749142250135,-36875.93327568,0.000222,69]
[364563100,1749142250147,-36875.93327568,0.000222,69]
[364563101,1749142250156,-36875.93327568,0.00022394,70]
[364563102,1749142250166,-440.0,0.00022465,2]
[364563103,1749142250177,-812.94,0.00022465,2]
[364563104,1749142250189,-1056.1,0.00022465,2]
[364563105,1749142250198,-1677.44,0.00022465,2]
[364563106,1749142250207,-1340.53,0.00022465,2]
[364563107,1749142250217,-487.64,0.00022465,2]
[364563108,1749142250227,-1782.43,0.00022465,2]
[364563109,1749142250238,-443.59,0.00022465,2]
[364563110,1749142250247,-440.0,0.00022465,2]
[364563111,1749142250256,-504.66,0.00022465,2]
[364563112,1749142250265,-472.16325569,0.00022465,2]
[364563113,1749142250275,-570.88,0.00022465,2]
[364563114,1749142250286,-685.71,0.00022465,2]
[364563115,1749142250296,-500.0,0.00022465,2]
[364563116,1749142250305,-542.91,0.00022465,2]
[364563117,1749142250314,-440.0,0.00022465,2]
[364563118,1749142250323,-512.61,0.00022465,2]
[364563119,1749142250333,-440.0,0.00022465,2]
[364563120,1749142250343,-440.0,0.00022465,2]
[364563121,1749142250352,-12289.23,0.00022465,2]
[364563122,1749142250362,-984.75,0.00022465,2]
[364563123,1749142250372,-440.0,0.00022465,2]
[364563124,1749142250382,-440.0,0.00022465,2]
[364563125,1749142250391,-568.24,0.00022465,2]
[364563126,1749142250400,-938.04,0.00022465,2]
[364563127,1749142250409,-914.52,0.00022465,2]
[364563128,1749142250418,-500.0,0.0002268,2]
[364563129,1749142250427,-499.78,0.00022739,2]
[364563130,1749142250436,-812.94,0.00022739,2]
[364563131,1749142250445,-1056.1,0.00022739,2]
[364563132,1749142250455,-1677.44,0.00022739,2]
[364563133,1749142250464,-1340.53,0.00022739,2]
[364563134,1749142250473,-487.64,0.00022739,2]
[364563135,1749142250482,-1782.43,0.00022739,2]
[364563136,1749142250491,-443.59,0.00022739,2]
[364563137,1749142250501,-440.0,0.00022739,2]
[364563138,1749142250510,-504.66,0.00022739,2]
[364563139,1749142250519,-570.88,0.00022739,2]
[364563140,1749142250528,-685.71,0.00022739,2]
[364563141,1749142250536,-542.91,0.00022739,2]
[364563142,1749142250546,-440.0,0.00022739,2]
[364563143,1749142250554,-512.61,0.00022739,2]
[364563144,1749142250563,-440.0,0.00022739,2]
[364563145,1749142250572,-440.0,0.00022739,2]
[364563146,1749142250581,-12289.23,0.00022739,2]
[364563147,1749142250592,-984.75,0.00022739,2]
[364563148,1749142250602,-440.0,0.00022739,2]
[364563149,1749142250611,-440.0,0.00022739,2]
[364563150,1749142250623,-938.04,0.00022739,2]
[364563151,1749142250634,-914.52,0.00022739,2]
[364563152,1749142250646,-2225.0,0.00022874,2]
[364563153,1749142250656,-709.0,0.00022874,2]
[364563154,1749142250666,-500.0,0.00023,2]
[364563155,1749142250675,-357.970643,0.00023013,7]
[364563156,1749142250684,-357.970643,0.00023013,7]
[364563157,1749142250693,-151.0,0.00023013,7]
[364563158,1749142250702,-812.94,0.00023013,2]
[364563159,1749142250711,-151.0,0.00023013,7]
[364563160,1749142250720,-151.0,0.00023013,7]
[364563161,1749142250729,-151.0,0.00023013,7]
[364563162,1749142250741,-1056.1,0.00023013,2]
[364563163,1749142250751,-1677.44,0.00023013,2]
[364563164,1749142250760,-1340.53,0.00023013,2]
[364563165,1749142250771,-487.64,0.00023013,2]
[364563166,1749142250782,-1782.43,0.00023013,2]
[364563167,1749142250792,-443.59,0.00023013,2]
[364563168,1749142250801,-440.0,0.00023013,2]
[364563169,1749142250811,-504.66,0.00023013,2]
[364563170,1749142250821,-570.88,0.00023013,2]
[364563171,1749142250831,-685.71,0.00023013,2]
[364563172,1749142250840,-542.91,0.00023013,2]
[364563173,1749142250850,-524.8934437,0.00023013,2]
[364563174,1749142250860,-512.61,0.00023013,2]
[364563175,1749142250870,-440.0,0.00023013,2]
[364563176,1749142250879,-440.0,0.00023013,2]
[364563177,1749142250888,-12289.23,0.00023013,2]
[364563178,1749142250898,-984.75,0.00023013,2]
[364563179,1749142250908,-440.0,0.00023013,2]
[364563180,1749142250918,-440.0,0.00023013,2]
[364563181,1749142250927,-938.04,0.00023013,2]
[364563182,1749142250937,-914.52,0.00023013,2]
[364563183,1749142250946,-22537.82,0.000231,2]
[364563184,1749142250955,-151.0,0.000231,7]
[364563185,1749142250966,-151.0,0.000231,7]
[364563186,1749142250975,-151.0,0.000231,7]
[364563187,1749142250986,-151.0,0.000231,7]
[364563188,1749142250995,-158.027504,0.000231,7]
[364563189,1749142251005,-158.027504,0.000231,7]
[364563190,1749142251014,-842.5625,0.000231,7]
[364563191,1749142251023,-200.62794978,0.00023108,7]
[364563192,1749142251033,-500.0,0.00023197,2]
[364563193,1749142251042,-812.94,0.00023287,2]
[364563194,1749142251052,-1056.1,0.00023287,2]
[364563195,1749142251062,-1677.44,0.00023287,2]
[364563196,1749142251071,-1340.53,0.00023287,2]
[364563197,1749142251081,-487.64,0.00023287,2]
[364563198,1749142251090,-1782.43,0.00023287,2]
[364563199,1749142251100,-443.59,0.00023287,2]
[364563200,1749142251109,-440.0,0.00023287,2]
[364563201,1749142251119,-504.66,0.00023287,2]
[364563202,1749142251128,-570.88,0.00023287,2]
[364563203,1749142251138,-685.71,0.00023287,2]
[364563204,1749142251148,-542.91,0.00023287,2]
[364563205,1749142251157,-512.61,0.00023287,2]
[364563206,1749142251167,-440.0,0.00023287,2]
[364563207,1749142251177,-440.0,0.00023287,2]
[364563208,1749142251187,-12289.23,0.00023287,2]
[364563209,1749142251197,-984.75,0.00023287,2]
[364563210,1749142251206,-440.0,0.00023287,2]
[364563211,1749142251216,-440.0,0.00023287,2]
[364563212,1749142251225,-151.654972,0.00023287,7]
[364563213,1749142251237,-938.04,0.00023287,2]
[364563214,1749142251246,-914.52,0.00023287,2]
[364563215,1749142251255,-157.028082,0.00023324,7]
[364563216,1749142251264,-176.673754,0.00023324,7]
[364563217,1749142251274,-1596.44,0.00023356,2]
[364563218,1749142251284,-216.9712955,0.0002337,2]
[364563219,1749142251293,-394.8738233,0.0002341,2]
[364563220,1749142251302,-2200.0,0.00023425,2]
[364563221,1749142251311,-215.0738,0.00023476,2]
[364563222,1749142251321,-1187.73,0.000235,7]
[364563223,1749142251330,-2799.72,0.000235,7]
[364563224,1749142251339,-12675.11581177,0.000235,7]
[364563225,1749142251348,-812.94,0.00023561,2]
[364563226,1749142251358,-1056.1,0.00023561,2]
[364563227,1749142251367,-1677.44,0.00023561,2]
[364563228,1749142251377,-1340.53,0.00023561,2]
[364563229,1749142251386,-487.64,0.00023561,2]
[364563230,1749142251395,-1782.43,0.00023561,2]
[364563231,1749142251405,-443.59,0.00023561,2]
[364563232,1749142251414,-440.0,0.00023561,2]
[364563233,1749142251423,-504.66,0.00023561,2]
[364563234,1749142251433,-151.0,0.00023561,7]
[364563235,1749142251443,-570.88,0.00023561,2]
[364563236,1749142251452,-151.0,0.00023561,7]
[364563237,1749142251461,-685.71,0.00023561,2]
[364563238,1749142251471,-151.0,0.00023561,7]
[364563239,1749142251482,-542.91,0.00023561,2]
[364563240,1749142251492,-512.61,0.00023561,2]
[364563241,1749142251502,-172.59,0.00023561,2]
[364563242,1749142251511,-440.0,0.00023561,2]
[364563243,1749142251520,-12289.23,0.00023561,2]
[364563244,1749142251530,-488.508586,0.00023561,7]
[364563245,1749142251539,-488.508586,0.00023561,7]
[364563246,1749142251549,-984.75,0.00023561,2]
[364563247,1749142251559,-440.0,0.00023561,2]
[364563248,1749142251569,-938.04,0.00023561,2]
[364563249,1749142251579,-914.52,0.00023561,2]
[364563250,1749142251588,-2659.21,0.000236,8]
[364563251,1749142251598,-157.6829628,0.00023726,2]
[364563252,1749142251607,-153.0,0.00023726,2]
[364563253,1749142251617,-153.0,0.00023726,2]
[364563254,1749142251627,-5210.04176799,0.000238,7]
[364563255,1749142251637,-117794.66690462,0.000238,2]
[364563256,1749142251646,-13929.12476639,0.000238,3]
[364563257,1749142251792,-961.30081818,0.000238,3]
[364563258,1749142251871,-440.0,0.00018356,2]
[364563259,1749142251881,-500.0,0.00018629,2]
[364563260,1749142251891,-500.0,0.00018629,2]
[364563261,1749142251900,-500.0,0.00018629,2]
[364563262,1749142251910,-500.0,0.00018629,2]
[364563263,1749142251920,-191.19999999,0.00018629,2]
[364563264,1749142252150,-380.0,0.00018356,2]
[364563265,1749142252160,-160.0,0.00018356,2]
[364563266,1749142252204,-280.0,0.00018356,2]
[364563267,1749142252214,-308.80000001,0.00018629,2]
[364563268,1749142252223,-500.0,0.00018629,2]
[364563269,1749142252233,-440.0,0.0001863,2]
[364563270,1749142252243,-440.0,0.0001863,2]
[364563271,1749142252252,-440.0,0.00018904,2]
[364563272,1749142252263,-440.0,0.00019178,2]
[364563273,1749142252272,-440.0,0.00019452,2]
[364563274,1749142252282,-548.33,0.00019726,2]
[364563275,1749142252291,-37704.58173367,0.000238,3]
[364563276,1749142252303,-2713.1422141,0.000238,3]
[364563277,1749142252312,-212.94059491,0.000238,7]
[364563278,1749142252322,-234.70636,0.000238,7]
[364563279,1749142252331,-234.70636,0.000238,7]
[364563280,1749142252341,-151.0,0.000238,7]
[364563281,1749142252351,-151.0,0.000238,7]
[364563282,1749142252360,-357.970643,0.000238,7]
[364563283,1749142252370,-357.970643,0.000238,7]
[364563284,1749142252379,-326.614262,0.000238,7]
[364563285,1749142252389,-151.0,0.000238,7]
[364563286,1749142252398,-151.0,0.000238,7]
[364563287,1749142252407,-151.0,0.000238,7]
[364563288,1749142252417,-196.24492298,0.000238,7]
[364563299,1749142620940,-636.62,0.0001862,3]
[364563300,1749142635382,-317.83,0.00017162,2]
[364563301,1749142635410,-272.68046678,0.00017705,2]
[364563302,1749142635438,-309.48953322,0.00017805,2]
[364563303,1749142646065,-250.01925632,0.00017805,2]
[364563304,1749142646102,-160.0,0.00018354,2]
[364563305,1749142646137,-300.0,0.00018355,2]
[364563306,1749142646170,-156.658,0.00018355,2]
[364563307,1749142646204,-440.0,0.00018356,2]
[364563308,1749142646237,-440.0,0.00018356,2]
[364563309,1749142646273,-440.0,0.00018356,2]
[364563310,1749142646307,-445.46472631,0.00018356,2]
[364563311,1749142646340,-387.85801737,0.00018356,2]
[364563312,1749142659646,-380.275325,0.00017908,2]
[364563313,1749142659676,-52.14198263,0.00018356,2]
[364563314,1749142659706,-440.0,0.00018356,2]
[364563315,1749142659734,-527.74761476,0.00018356,2]
[364563316,1749142659762,-440.0,0.00018356,2]
[364563317,1749142659792,-430.0,0.00018356,2]
[364563318,1749142659821,-440.0,0.00018356,2]
[364563319,1749142659851,-430.0,0.00018356,2]
[364563320,1749142659883,-440.0,0.00018356,2]
[364563321,1749142660086,-346.24338429,0.00018356,2]
[364563322,1749142660121,-73.59169332,0.00018356,2]
[364563323,1749142666644,-366.40830668,0.00018356,2]
[364563324,1749142666672,-440.0,0.00018356,2]
[364563325,1749142666700,-430.0,0.00018356,2]
[364563326,1749142666727,-440.0,0.00018356,2]
[364563327,1749142666755,-440.0,0.00018356,2]
[364563328,1749142666783,-430.0,0.00018356,2]
[364563329,1749142666810,-371.75727751,0.00018356,2]
[364563330,1749142666837,-380.0,0.00018356,2]
[364563331,1749142666863,-506.84356617,0.00018356,2]
[364563332,1749142666891,-440.0,0.00018356,2]
[364563333,1749142666920,-440.0,0.00018356,2]
[364563334,1749142666951,-314.99084964,0.00018356,2]
[364563335,1749142669802,-115.00915036,0.00018356,2]
[364563336,1749142669830,-440.0,0.00018356,2]
[364563337,1749142669855,-431.79371365,0.00018356,2]
[364563338,1749142669884,-440.0,0.00018356,2]
[364563339,1749142669911,-430.0,0.00018356,2]
[364563340,1749142669942,-430.0,0.00018356,2]
[364563341,1749142669971,-440.0,0.00018356,2]
[364563342,1749142669998,-430.0,0.00018356,2]
[364563343,1749142670029,-440.0,0.00018356,2]
[364563344,1749142670059,-440.0,0.00018356,2]
[364563345,1749142670086,-246.89727165,0.00018356,2]
[364563346,1749142670114,-241.0,0.00018356,2]
[364563347,1749142670140,-400.0,0.00018356,2]
[364563348,1749142670166,-75.29986434,0.00018356,2]
[364563351,1749142676740,162.03892,0.00013699,2]
[364563381,1749143134277,-341.07,0.00017192,2]
[364563382,1749143134298,-335.70527372,0.00017805,2]
[364563383,1749143134332,-201.42316423,0.00017805,2]
[364563384,1749143134355,-300.0,0.00018344,2]
[364563385,1749143134376,-156.587,0.00018345,2]
[364563386,1749143134397,-547.86262822,0.00018356,2]
[364563387,1749143134418,-420.0,0.00018356,2]
[364563388,1749143134442,-430.0,0.00018356,2]
[364563389,1749143134462,-440.0,0.00018356,2]
[364563390,1749143134483,-430.0,0.00018356,2]
[364563391,1749143134503,-440.0,0.00018356,2]
[364563392,1749143134525,-430.73746052,0.00018356,2]
[364563393,1749143134545,-256.2250846,0.00018356,2]
[364563394,1749143134566,-440.0,0.00018356,2]
[364563395,1749143134587,-440.0,0.00018356,2]
[364563396,1749143134609,-440.0,0.00018356,2]
[364563397,1749143134630,-430.0,0.00018356,2]
[364563398,1749143134651,-430.0,0.00018356,2]
[364563399,1749143134681,-284.20938629,0.00018356,2]
[364563400,1749143134711,-440.0,0.00018356,2]
[364563401,1749143134739,-440.0,0.00018356,2]
[364563402,1749143134766,-408.01559873,0.00018356,2]
[364563403,1749143134795,-440.0,0.00018356,2]
[364563404,1749143134823,-430.0,0.00018356,2]
[364563405,1749143134852,-440.0,0.00018356,2]
[364563406,1749143134880,-440.0,0.00018356,2]
[364563407,1749143134907,-437.07784457,0.00018356,2]
[364563408,1749143134940,-440.0,0.00018356,2]
[364563409,1749143134973,-440.0,0.00018356,2]
[364563410,1749143135000,-440.0,0.00018356,2]
[364563411,1749143135022,-430.0,0.00018356,2]
[364563412,1749143135046,-400.0,0.00018356,2]
[364563413,1749143135073,-440.0,0.00018356,2]
[364563414,1749143135103,-158.36933256,0.00018356,2]
[364563415,1749143135130,-440.0,0.00018356,2]
[364563416,1749143135159,-440.0,0.00018356,2]
[364563417,1749143135185,-440.0,0.00018356,2]
[364563418,1749143135206,-503.1696128,0.00018356,2]
[364563419,1749143135234,-440.0,0.00018356,2]
[364563420,1749143135261,-440.0,0.00018356,2]
[364563421,1749143135286,-430.0,0.00018356,2]
[364563422,1749143135312,-430.0,0.00018356,2]
[364563423,1749143135338,-440.0,0.00018356,2]
[364563424,1749143135361,-440.0,0.00018356,2]
[364563425,1749143135384,-440.0,0.00018356,2]
[364563426,1749143135415,-431.21541039,0.00018356,2]
[364563427,1749143135445,-440.0,0.00018356,2]
[364563428,1749143135471,-440.0,0.00018356,2]
[364563429,1749143135498,-440.0,0.00018356,2]
[364563430,1749143135523,-431.75270288,0.00018356,2]
[364563431,1749143135547,-440.0,0.00018356,2]
[364563432,1749143135571,-277.51920732,0.00018356,2]
[364563433,1749143135595,-440.0,0.00018356,2]
[364563434,1749143135619,-430.0,0.00018356,2]
[364563435,1749143135642,-430.0,0.00018356,2]
[364563436,1749143135665,-440.0,0.00018356,2]
[364563437,1749143135689,-440.0,0.00018356,2]
[364563438,1749143135712,-440.0,0.00018356,2]
[364563439,1749143135736,-440.0,0.00018356,2]
[364563440,1749143135761,-440.0,0.00018356,2]
[364563441,1749143135785,-440.0,0.00018356,2]
[364563442,1749143135808,-440.0,0.00018356,2]
[364563443,1749143135832,-440.0,0.00018356,2]
[364563444,1749143135857,-440.0,0.00018356,2]
[364563445,1749143135880,-430.0,0.00018356,2]
[364563446,1749143135905,-440.0,0.00018356,2]
[364563447,1749143135929,-430.0,0.00018356,2]
[364563448,1749143135953,-430.0,0.00018356,2]
[364563449,1749143135978,-440.0,0.00018356,2]
[364563450,1749143136002,-440.0,0.00018356,2]
[364563451,1749143136026,-198.55791851,0.00018356,2]
[364563452,1749143136050,-440.0,0.00018356,2]
[364563453,1749143136070,-430.0,0.00018356,2]
[364563454,1749143136260,-440.0,0.00018356,2]
[364563455,1749143136289,-440.0,0.00018356,2]
[364563456,1749143136309,-430.0,0.00018356,2]
[364563457,1749143136329,-440.0,0.00018356,2]
[364563458,1749143136351,-440.0,0.00018356,2]
[364563459,1749143136372,-440.0,0.00018356,2]
[364563460,1749143136394,-440.0,0.00018356,2]
[364563461,1749143136414,-440.0,0.00018356,2]
[364563462,1749143136435,-440.0,0.00018356,2]
[364563463,1749143136456,-450.0,0.00018356,2]